[Event "44th Chess Olympiad Women 2022"]
[Site "Chennai"]
[Date "2022.07.30"]
[Round "2.10"]
[White "De Rycke, Tyani"]
[Black "Balabayeva, Xeniya"]
[Result "1/2-1/2"]
[ECO "B26"]
[WhiteElo "1994"]
[BlackElo "2198"]
[Annotator "TA"]
[PlyCount "86"]
[EventDate "2022.07.29"]
[EventType "team-tourn"]
[EventCountry "IND"]
[SourceTitle "playchess.com"]
[Source "ChessBase"]
[SourceQuality "1"]
[WhiteTeam "Belgium"]
[BlackTeam "Kazakhstan"]
[WhiteTeamCountry "BEL"]
[BlackTeamCountry "KAZ"]
[TimeControl "40/5400+30:1800+30"]

{[%evp 18,86,-6,-6,7,-1,-3,-5,-12,-29,-32,-17,-13,-16,0,0,0,0,0,0,7,0,0,-25,26,0,0,0,0,0,14,14,56,8,35,22,19,9,41,36,57,3,100,17,24,0,0,-207,-148,-324,-245,-450,-176,-175,-166,-121,0,0,51,0,0,0,73,0,0,0,75,0,0,0,46]} 1. e4 {[%emt 0:00:02]} c5 {[%emt 0:00:11]} 2. Nc3 {[%emt 0:00:06]} Nc6 {[%emt 0:00:11]} 3. g3 {[%emt 0:00:07]} g6 {[%emt 0:00:25]} 4. Bg2 {[%emt 0:00:08]} Bg7 {[%emt 0:00:12]} 5. d3 {[%emt 0:00:08]} d6 {[%emt 0:00:36]} 6. Be3 {[%emt 0:00:10]} Rb8 {[%emt 0:00:52]} 7. Qd2 {[%emt 0:00:16]} b5 {[%emt 0:00:48][%cal Bb7b5,Bb5b4][%mdl 32]} 8. Nge2 {[%emt 0:00:51]} b4 $1 {[%emt 0:00:54] 8...b4 is better than 8...Nd4.} 9. Nd1 {[%emt 0:00:07]} Nd4 {[%emt 0:00:08]} 10. O-O {[%emt 0:03:33]} h5 {[%emt 0:01:35] B26: Closed Sicilian: 3 g3, lines with early Be3.} 11. h3 {[%emt 0:04:37]} e6 {[%emt 0:05:18]} 12. f4 {[%emt 0:01:48]} Ne7 {[%emt 0:03:25]} 13. c3 {[%emt 0:12:39]} bxc3 {[%emt 0:04:36]} 14. bxc3 {[%emt 0:00:08]} Nxe2+ {[%emt 0:00:11]} 15. Qxe2 {[%emt 0:00:07] [#]} Qa5 $146 {[%emt 0:04:18]} ({Predecessor:} 15... Ba6 16. Rc1 Qa5 17. Kh2 Qb5 18. Nf2 Qb2 19. Rc2 Qa3 20. Qd2 f5 21. Re1 O-O {0-1 (42) Masternak,G (2330)-Blanco Acevedo,C (2304) Warsaw 2021}) 16. Rc1 {[%emt 0:26:47]} O-O {[%emt 0:08:07][%cal Oc5c4]} 17. g4 {[%emt 0:04:10]} hxg4 {[%emt 0:04:58]} 18. hxg4 {[%emt 0:00:35][%cal Of4f5,Bh3g4,Bg4g5][%mdl 32]} f5 {[%emt 0:12:40]} 19. exf5 {[%emt 0:05:06]} gxf5 {[%emt 0:04:44]} 20. g5 {[%emt 0:02:45]} Bb7 {[%emt 0:07:29]} (20... Kf7 $142) 21. Bxb7 {[%emt 0:05:08]} (21. Bf2 $5 {[%cal Re2e6]} e5 22. Bxb7 Rxb7 23. Bg3 $11) 21... Rxb7 {[%emt 0:00:07]} 22. Bf2 {[%emt 0:00:51]} e5 {[%emt 0:04:20]} 23. Bg3 {[%emt 0:02:54][%cal Rf4e5]} Ng6 {[%emt 0:20:01]} 24. Ne3 {[%emt 0:07:56] [#] Hoping for Qh5.} Qa4 {[%emt 0:08:27][%cal Re5f4]} 25. Nd5 {[%emt 0:09:12]} (25. Qf3 $14 Qd7 26. Rf2) 25... Qe8 {[%emt 0:03:03]} 26. Rce1 {[%emt 0:09:23]} Qe6 {[%emt 0:01:35]} 27. Qg2 {[%emt 0:00:42][%cal Od5f6] And now Nf6+! would win.} Rbf7 {[%emt 0:02:26] Prevents Nf6+.} 28. Re2 {[%emt 0:02:27]} c4 {[%emt 0:01:30]} 29. dxc4 {[%emt 0:01:17]} (29. d4 $1 $14) 29... e4 {[%emt 0:00:04]} (29... Rc8 $1 $11) 30. Qh3 {[%emt 0:00:44] White is more active.} (30. Rc2 $16) 30... Rc8 $1 $11 {[%emt 0:00:31]} 31. Rh2 {[%emt 0:00:14]} Rxc4 {[%emt 0:00:30]} 32. Qh7+ {[%emt 0:00:15]} (32. Rd1 $11) 32... Kf8 $17 {[%emt 0:00:09] Threatens to win with ...Bd4+.} 33. Ne3 $2 {[%emt 0:00:45]} (33. Nf6 $2 Bxf6 34. Qh3 Bxc3 $19) (33. Rb1 $17 {was called for.} Rc8 34. Rd1) 33... Rxc3 {[%emt 0:00:31]} 34. Bf2 {[%emt 0:00:31]} (34. Rb1 Bd4 35. Rb8+ Ke7 36. Rb7+ Ke8 37. Qg8+ Nf8 38. Rb8+ Rc8 39. Rb3 Rc1+ 40. Kg2 Bxe3 41. Rxe3) 34... d5 $2 {[%emt 0:01:36]} (34... Nxf4 $2 35. Rb1 Rc8 36. Rf1 $19) (34... Bd4 35. Qh6+ Bg7) 35. Rb1 $19 {[%emt 0:00:40] aiming for Rb8+.} (35. Nxd5 $2 e3 36. Nxc3 exf2+ 37. Rhxf2 (37. Rfxf2 $2 Bxc3 38. Qh6+ Bg7 $19) 37... Bxc3 38. Qh6+ Bg7 $19) 35... Rc8 {[%emt 0:00:29] Prevents Rb8.} (35... Nxf4 36. Rb8+ Ke7 37. Rb7+ Kf8 38. Rb8+ Ke7 39. Rb7+ Kf8 40. Rb8+ $11) 36. Nxd5 {[%emt 0:00:33][%cal Od5f6] [#]} Qxd5 {[%emt 0:00:50]} (36... e3 $1 $17 {[%cal Re3f2]} 37. Nxe3 (37. Bxe3 $2 Ne7 $19) 37... Nxf4) 37. Qxg6 $11 {[%emt 0:00:08]} Re8 {[%emt 0:00:31]} (37... Rb7 $11 38. Re1 (38. Rxb7 Qd1+) 38... Rc3) 38. Rh3 {[%emt 0:00:43]} ({Better is} 38. Be3 $14) 38... Rfe7 {[%emt 0:00:38]} 39. Re1 {[%emt 0:00:53]} Bd4 {[%emt 0:00:30]} (39... e3 $11 {remains equal.} 40. Rhxe3 (40. Rexe3 Rxe3 41. Rxe3 Rxe3 $11) (40. Bxe3 Re6 $11) 40... Rxe3 41. Bxe3 (41. Rxe3 Rxe3 42. Bxe3 Bd4 $11) 41... Bd4 42. Qh6+ Kf7 43. g6+ Kg8 44. Bxd4 (44. Qh7+ Kf8 $11) 44... Qxd4+ 45. Kg2 (45. Kf1 Qc4+ 46. Kg2 Qc2+ 47. Kh3 Qc3+ 48. Kh2 Qb2+ 49. Kh3 Qc3+ 50. Kg2 Qd2+ 51. Kh3 Qc3+ $11) 45... Qd2+ 46. Kh3 Qc3+ 47. Kg2 Qd2+ 48. Kh3 Qc3+ 49. Kg2 Qd2+) 40. Qh6+ {[%emt 0:00:29]} (40. Bxd4 $16 {White wants to mate with Rh8+.} Qxd4+ 41. Kh1) 40... Bg7 {[%emt 0:00:24]} 41. Qg6 {[%emt 0:30:18]} Bd4 {[%emt 0:30:13]} (41... e3 $11 {keeps the balance.} 42. Rhxe3 (42. Rexe3 Rxe3 43. Rxe3 Rxe3 $11) (42. Bxe3 Re6 $11) 42... Rxe3 43. Bxe3 (43. Rxe3 Rxe3 44. Bxe3 Bd4 $11) 43... Bd4 44. Qh6+ Kg8 45. Qg6+ Kf8 46. Qh6+ Kg8 47. Qg6+ Kf8) 42. Qh6+ {[%emt 0:00:00]} ({White should play} 42. Bxd4 $16 {Threatening mate with Rh8+.} Qxd4+ 43. Kh1) 42... Bg7 {[%emt 0:00:00]} 43. Qg6 {[%emt 0:00:00]} (43. Qa6 $11) 43... Bd4 {[%emt 0:00:00] Weighted Error Value: White=0.39/Black=0.38} 1/2-1/2

[Event "44th Chess Olympiad Women 2022"]
[Site "Chennai"]
[Date "2022.07.30"]
[Round "2.11"]
[White "Berzina, Ilze"]
[Black "Padmini, Rout"]
[Result "1/2-1/2"]
[ECO "B40"]
[WhiteElo "2141"]
[BlackElo "2374"]
[Annotator "TA"]
[PlyCount "66"]
[EventDate "2022.07.29"]
[EventType "team-tourn"]
[EventCountry "IND"]
[SourceTitle "playchess.com"]
[Source "ChessBase"]
[SourceQuality "1"]
[WhiteTeam "Latvia"]
[BlackTeam "India"]
[WhiteTeamCountry "LAT"]
[BlackTeamCountry "IND"]
[TimeControl "40/5400+30:1800+30"]

{[%evp 9,66,0,0,-1,-1,-1,0,-6,0,0,4,-26,-31,-42,-48,-46,-47,-43,30,32,58,-29,-25,-25,0,0,27,54,59,36,46,30,52,8,11,5,7,0,0,0,56,61,51,20,20,20,23,22,32,15,26,30,24,36,28,29,21,24,23]} 1. e4 {[%emt 0:00:04]} c5 {[%emt 0:00:08]} 2. Nf3 {[%emt 0:00:10]} e6 {[%emt 0:00:10]} 3. c4 {[%emt 0:00:23]} Nc6 {[%emt 0:00:37]} 4. Nc3 {[%emt 0:00:31]} Nd4 {[%emt 0:00:44]} 5. d3 {[%emt 0:03:29]} Ne7 {[%emt 0:00:55]} 6. g3 {[%emt 0:06:03] B40: Sicilian: 2...e6, Unusual lines.} Nec6 {[%emt 0:00:44]} 7. Bg2 {[%emt 0:00:30]} Be7 {[%emt 0:00:58]} 8. O-O {[%emt 0:00:45] The position is equal.} O-O {[%emt 0:00:48]} 9. Nxd4 {[%emt 0:02:13]} cxd4 {[%emt 0:03:35]} 10. Ne2 {[%emt 0:01:42]} Rb8 {[%emt 0:06:05]} 11. f4 {[%emt 0:08:31]} b5 {[%emt 0:04:06]} 12. b3 {[%emt 0:02:30] [#]} bxc4 $146 {[%emt 0:03:28]} ({Predecessor:} 12... a5 13. g4 bxc4 14. bxc4 e5 15. Ng3 g6 16. g5 exf4 17. Bxf4 d6 18. Qd2 Ne5 {0-1 (39) Musialkiewicz,J (2244)-Simantsev,M (2445) Pokrzywna 2018}) 13. bxc4 {[%emt 0:01:20]} f5 {[%emt 0:06:17]} (13... d6 $15) 14. exf5 $11 {[%emt 0:03:27]} exf5 {[%emt 0:00:16]} 15. g4 {[%emt 0:02:00]} (15. Bd2 $14) 15... fxg4 {[%emt 0:08:32]} 16. Ng3 {[%emt 0:01:01]} Bf6 {[%emt 0:00:10]} 17. Qxg4 {[%emt 0:02:37]} Ne7 {[%emt 0:09:32]} 18. f5 {[%emt 0:09:48]} Bb7 {[%emt 0:03:41]} 19. Rf2 {[%emt 0:16:19] Hoping for Nh5.} Nc6 {[%emt 0:04:53]} 20. Nh5 {[%emt 0:04:09]} Ne5 {[%emt 0:07:19][%csl LRd3,LRg4]} 21. Qg3 {[%emt 0:00:14]} Kh8 $1 {[%emt 0:03:40]} 22. Bf4 {[%emt 0:13:19]} Qe8 {[%emt 0:05:24]} 23. Bxe5 {[%emt 0:07:40]} Bxe5 {[%emt 0:03:44]} 24. f6 {[%emt 0:00:58][%csl Gf6,Gh5][%cal Rg3g7]} Rf7 {[%emt 0:06:18]} ({Don't take} 24... g6 25. Qg5 Bxg2 26. Kxg2 $16) ({Black should try} 24... Rg8 $1 $11 25. fxg7+ Bxg7 26. Nxg7 Rxg7) 25. fxg7+ $14 {[%emt 0:00:34]} Rxg7 {[%emt 0:10:40] [#]} 26. Rf8+ $1 $40 {[%emt 0:05:26][%mdl 128] Black needs to defend precisely.} Qxf8 {[%emt 0:00:17]} 27. Qxe5 {[%emt 0:00:05][%mdl 64] Pin} d6 {[%emt 0:02:35]} 28. Qxd4 {[%emt 0:01:21][%mdl 64] Pin. The board is on fire.} Bxg2 {[%emt 0:00:52]} 29. Nxg7 {[%emt 0:00:42]} Qxg7 {[%emt 0:00:21]} 30. Qxg7+ {[%emt 0:00:11][%mdl 64] [#] Remove Defender} Kxg7 {[%emt 0:00:04]} 31. Kxg2 $11 {[%emt 0:00:05] KR-KR} Rb2+ {[%emt 0:00:16]} 32. Kf3 {[%emt 0:01:52] Strongly threatening Ke4.} Rxh2 {[%emt 0:05:19]} 33. Ke4 {[%emt 0:00:25] Threatening Kd5.} Rh5 {[%emt 0:02:16] Weighted Error Value: White=0.13 (very precise) /Black=0.13 (very precise)} 1/2-1/2

[Event "44th Chess Olympiad Women 2022"]
[Site "Chennai"]
[Date "2022.07.30"]
[Round "2.12"]
[White "Lazarne Vajda, Szidonia"]
[Black "O`Gorman, Alice"]
[Result "1/2-1/2"]
[ECO "C42"]
[WhiteElo "2313"]
[BlackElo "2043"]
[Annotator "TA"]
[PlyCount "69"]
[EventDate "2022.07.29"]
[EventType "team-tourn"]
[EventCountry "IND"]
[SourceTitle "playchess.com"]
[Source "ChessBase"]
[SourceQuality "1"]
[WhiteTeam "Hungary"]
[BlackTeam "Ireland"]
[WhiteTeamCountry "HUN"]
[BlackTeamCountry "IRL"]
[TimeControl "40/5400+30:1800+30"]

{[%evp 13,69,9,16,17,39,12,38,20,39,4,107,98,104,93,100,96,108,102,122,33,44,18,17,19,41,0,0,0,0,4,111,112,210,214,220,0,0,0,0,0,0,0,0,0,0,0,0,0,0,0,0,0,0,0,0,0,0,0]} 1. e4 {[%emt 0:00:06]} e5 {[%emt 0:00:05]} 2. Nf3 {[%emt 0:00:17]} Nf6 {[%emt 0:00:06]} 3. Nxe5 {[%emt 0:00:34]} d6 {[%emt 0:00:05]} 4. Nf3 {[%emt 0:00:23]} Nxe4 {[%emt 0:00:07]} 5. Nc3 {[%emt 0:00:50]} Nxc3 {[%emt 0:00:07]} 6. dxc3 {[%emt 0:00:08]} Be7 {[%emt 0:00:05]} 7. Be3 {[%emt 0:01:02]} O-O {[%emt 0:00:15]} 8. Qd2 {[%emt 0:01:10] C42: Petroff Defence: 3 Nxe5 and unusual White 3rd moves.} Be6 {[%emt 0:00:09]} 9. O-O-O {[%emt 0:08:22]} c5 {[%emt 0:00:04]} 10. a3 {[%emt 0:03:50] White is slightly better.} Nc6 {[%emt 0:03:20] [#]} 11. Bf4 $146 {[%emt 0:08:53][%cal Rf4d6]} ({Predecessor:} 11. h4 a6 12. Ng5 b5 13. Nxe6 fxe6 14. g3 Qa5 15. Bh3 Rab8 16. Bxe6+ Kh8 17. h5 {1-0 (23) Abdulla Mohammed,A (1185)-Shaker,M (1734) Kuwait 2019}) 11... b5 {[%emt 0:11:31]} (11... d5 $11 {keeps the balance.}) 12. Bxd6 $16 {[%emt 0:14:28]} (12. Bxb5 Qb6 13. c4 h6 $14) 12... Bxd6 {[%emt 0:03:21]} 13. Qxd6 {[%emt 0:03:29]} ({Wrong is} 13. Bxb5 $2 Qb8 $1 14. Qe2 (14. Bxc6 $2 Bf4 $19) 14... Bf4+ 15. Kb1 Re8 $1 $19) 13... Qb6 {[%emt 0:00:47]} 14. Bd3 {[%emt 0:08:50] Black must now prevent Ng5.} Rfd8 {[%emt 0:05:48]} 15. Qf4 {[%emt 0:01:51] Threatens to win with Ng5.} b4 {[%emt 0:07:37]} 16. Ng5 {[%emt 0:05:33]} ({White should play} 16. axb4 $16 {Hoping for Ng5.} cxb4 17. Ng5) 16... bxc3 $14 {[%emt 0:11:55][%csl Gc3][%cal Rb6b2]} 17. Bxh7+ {[%emt 0:13:14]} (17. bxc3 $5 {[%cal Rd3h7]} Qa5 18. Bxh7+ Kh8 19. Rxd8+ Rxd8 20. Bd3 Qxc3 21. Qe4 $14) 17... Kh8 {[%emt 0:00:28][%csl Gc3][%cal Rb6b2]} 18. bxc3 {[%emt 0:08:22]} Qa5 $1 {[%emt 0:24:21][%csl LRa3,LRc3]} (18... Rab8 $2 19. Rxd8+ Nxd8 20. Re1 $18 (20. Kd2 f6 $18)) 19. Rxd8+ {[%emt 0:05:31]} Rxd8 {[%emt 0:01:33]} 20. Bd3 {[%emt 0:00:08]} Qxc3 {[%emt 0:05:38]} (20... Qxa3+ $2 21. Kd2 c4 22. Qe4 $18) 21. Qe4 {[%emt 0:01:41][%csl Gd3,Gg5][%cal Re4h7] Dancing on a razor blade.} Qxa3+ {[%emt 0:06:24] [#]} (21... g6 $1 $11 22. Nxe6 (22. Qh4+ Kg8 $11) 22... fxe6) 22. Kd1 $1 $16 {[%emt 0:02:53][%csl Gd3,Gg5][%cal Re4h7]} g6 {[%emt 0:04:43]} 23. Nxe6 $18 {[%emt 0:00:46]} fxe6 {[%emt 0:00:54] [#]} 24. Qxg6 $2 {[%emt 0:00:33]} (24. Re1 $1 $18 Qa1+ 25. Kd2 (25. Ke2 Qe5 $16) 25... Qa5+ 26. Ke2) 24... Rxd3+ $1 $11 {[%emt 0:01:24] The position is equal.} 25. Qxd3 $18 {[%emt 0:02:29][%mdl 4096] Endgame KQR-KQN} Qa1+ {[%emt 0:00:06]} 26. Kd2 {[%emt 0:00:09]} Qxh1 {[%emt 0:00:09]} 27. Qh3+ {[%emt 0:01:03]} Kg7 {[%emt 0:00:23]} 28. Qg3+ {[%emt 0:00:54]} Kh8 {[%emt 0:01:12]} 29. Qh3+ {[%emt 0:01:56]} Kg7 {[%emt 0:00:10]} 30. Qg3+ {[%emt 0:01:16]} Kh8 {[%emt 0:00:24]} 31. Qh4+ {[%emt 0:03:26]} Kg7 {[%emt 0:01:10]} 32. Qg4+ {[%emt 0:00:17]} Kh8 {[%emt 0:01:12]} 33. Qh4+ {[%emt 0:00:38]} Kg7 {[%emt 0:00:21]} 34. Qg4+ {[%emt 0:00:20]} Kh8 {[%emt 0:00:20]} 35. Qh4+ {[%emt 0:00:33] Weighted Error Value: White=0.18 (very precise) /Black=0.20 (precise)} 1/2-1/2

[Event "44th Chess Olympiad Women 2022"]
[Site "Chennai"]
[Date "2022.07.30"]
[Round "2.12"]
[White "Kanyamarala, Trisha"]
[Black "Hoang, Thanh Trang"]
[Result "1/2-1/2"]
[ECO "A81"]
[WhiteElo "2270"]
[BlackElo "2376"]
[Annotator "TA"]
[PlyCount "72"]
[EventDate "2022.07.29"]
[EventType "team-tourn"]
[EventCountry "IND"]
[SourceTitle "playchess.com"]
[Source "ChessBase"]
[SourceQuality "1"]
[WhiteTeam "Ireland"]
[BlackTeam "Hungary"]
[WhiteTeamCountry "IRL"]
[BlackTeamCountry "HUN"]
[TimeControl "40/5400+30:1800+30"]

{[%evp 9,72,25,35,65,57,59,50,59,54,18,26,-56,-61,-54,-50,-69,-67,-129,-118,-180,-155,-164,-71,-197,-204,-195,-193,-193,-172,-166,-205,-251,-111,-190,-79,-153,-152,-252,0,0,0,0,0,0,0,0,0,0,0,0,0,0,0,0,0,0,0,0,0,0,0,0,0,0,0]} 1. d4 {[%emt 0:00:06]} f5 {[%emt 0:00:25]} 2. g3 {[%emt 0:00:23]} Nf6 {[%emt 0:00:18]} 3. Bg2 {[%emt 0:00:13]} g6 {[%emt 0:00:20]} 4. Nd2 {[%emt 0:00:10]} Nc6 {[%emt 0:04:36][%cal Bb8c6,Bc6e5,Be5f7][%mdl 32]} 5. d5 {[%emt 0:00:21]} Ne5 {[%emt 0:00:56]} 6. e4 {[%emt 0:03:59] A81: Dutch Defence: 2 g3.} fxe4 {[%emt 0:04:42]} 7. Nxe4 {[%emt 0:00:14]} Nxe4 {[%emt 0:02:06]} 8. Bxe4 {[%emt 0:00:09] White is slightly better.} Bg7 {[%emt 0:00:29]} 9. f4 {[%emt 0:21:05]} Nf7 {[%emt 0:04:45]} 10. f5 {[%emt 0:04:10]} (10. c3 $11) 10... gxf5 $15 {[%emt 0:07:25]} 11. Bxf5 {[%emt 0:00:23]} c6 $1 {[%emt 0:00:48]} 12. Be4 {[%emt 0:04:01]} Qa5+ $1 {[%emt 0:10:31] [#]} 13. c3 $146 {[%emt 0:09:17] [#]} (13. Bd2 $15 Qb6 14. Qh5) ({Predecessor:} 13. Bd2 Qc5 14. dxc6 bxc6 15. c3 Nd6 16. Bd3 Rb8 17. Qg4 Qe5+ 18. Ne2 Rxb2 19. Bf4 {0-1 (60) Siebrecht,S (2360)-Danner,G (2440) Budapest 1994}) 13... Bxc3+ $1 $17 {[%emt 0:09:11][%mdl 512]} 14. bxc3 {[%emt 0:00:34]} (14. Kf1 $17 Nd6 15. Qh5+ Kd8 16. Bf3) (14. Bd2 Bb4) 14... Qxc3+ $19 {[%emt 0:00:09]} 15. Qd2 {[%emt 0:02:29]} Qe5 {[%emt 0:04:43]} (15... Qxa1 $19 16. Nf3 Nd6) 16. Qe3 {[%emt 0:07:43]} Qxa1 {[%emt 0:10:18]} 17. Nf3 {[%emt 0:05:02]} Qxa2 {[%emt 0:00:58]} 18. O-O {[%emt 0:04:45]} cxd5 {[%emt 0:01:07]} 19. Bd3 {[%emt 0:04:48] Black must now prevent Re1. A strong pair of Bishops.} d6 $1 {[%emt 0:04:17] aiming for ...Bd7.} 20. Re1 {[%emt 0:05:33][%csl Ge1][%cal Re3e7]} e5 {[%emt 0:02:07]} (20... O-O $19 {and Black stays clearly on top.} 21. Bd2 Bh3) 21. Ng5 {[%emt 0:01:50]} (21. Nxe5 $17 {was called for.} dxe5 22. Qc5) 21... Rf8 {[%emt 0:10:26]} (21... d4 $1 $19 {[%cal Rd4e3]} 22. Qf3 Nxg5 23. Bxg5 Qf7 24. Bb5+ Bd7 25. Qxf7+ Kxf7 26. Bxd7 Rhf8) 22. Nxh7 {[%emt 0:05:13]} (22. Rf1 $142) 22... Bh3 $17 {[%emt 0:01:10][%csl Gh3][%cal Ra2g2]} 23. Re2 {[%emt 0:05:50] [#] Inhibits Qg2+.} (23. Bb5+ $17 Ke7 24. Qf3 Qg2+ 25. Qxg2 Bxg2 26. Kxg2 (26. Nxf8 $2 Be4 $19)) 23... Qa1 $2 {[%emt 0:01:43]} 24. Nxf8 $11 {[%emt 0:01:43] The position is equal.} d4 {[%emt 0:05:14]} 25. Qd2 {[%emt 0:01:15]} Kxf8 {[%emt 0:00:32]} 26. Rf2 {[%emt 0:02:03] White wants to mate with Qh6+.} Rc8 {[%emt 0:03:35]} 27. Qh6+ {[%emt 0:01:01]} Ke8 {[%emt 0:01:58][%cal Bf8e8,Be8d8,Bd8c7,Bc7b6][%mdl 32]} 28. Bb5+ {[%emt 0:03:12]} Kd8 {[%emt 0:01:03]} 29. Qh4+ {[%emt 0:02:27]} (29. Qxh3 Rxc1+ 30. Bf1 {[#]} d3 $1 $17) 29... Kc7 {[%emt 0:00:27]} 30. Rxf7+ {[%emt 0:01:35]} Kb6 {[%emt 0:02:10]} 31. Qxh3 {[%emt 0:00:49] Really sharp!} Qxc1+ {[%emt 0:00:17]} 32. Bf1 $1 {[%emt 0:01:15] Hoping for Qh7.} ({But not} 32. Rf1 Qe3+ 33. Kh1 Qe4+ 34. Kg1 Qe3+ 35. Kh1 Qe4+ 36. Kg1 Rc2 $17) 32... Qe3+ {[%emt 0:01:42]} 33. Kh1 $1 {[%emt 0:00:34]} Qe4+ {[%emt 0:02:27]} (33... Rc1 $2 34. Qg2 Rxf1+ 35. Rxf1 $18) 34. Kg1 $1 {[%emt 0:00:58]} ({Of course not} 34. Qg2 Qxg2+ 35. Kxg2 e4 $17) 34... Qe3+ {[%emt 0:00:27]} 35. Kh1 $1 {[%emt 0:00:19]} Qe4+ {[%emt 0:00:06]} (35... Rc1 $2 36. Qg2 Rxf1+ 37. Rxf1 $18) 36. Kg1 $1 {[%emt 0:00:52]} ({Much weaker is} 36. Qg2 Qxg2+ 37. Kxg2 e4 $17) 36... Qe3+ {[%emt 0:01:09] Black had all chances to win.  Weighted Error Value: White=0.23 (precise) /Black=0.17 (very precise)} 1/2-1/2

[Event "44th Chess Olympiad Women 2022"]
[Site "Chennai"]
[Date "2022.07.30"]
[Round "2.13"]
[White "Calzetta Ruiz, Monica"]
[Black "Azhar, Puteri Rifqah Fahada"]
[Result "1-0"]
[ECO "C64"]
[WhiteElo "2230"]
[BlackElo "1940"]
[Annotator "TA"]
[PlyCount "99"]
[EventDate "2022.07.29"]
[EventType "team-tourn"]
[EventCountry "IND"]
[SourceTitle "playchess.com"]
[Source "ChessBase"]
[SourceQuality "1"]
[WhiteTeam "Spain"]
[BlackTeam "Malaysia"]
[WhiteTeamCountry "ESP"]
[BlackTeamCountry "MAS"]
[TimeControl "40/5400+30:1800+30"]

{[%evp 12,99,58,50,119,111,107,107,97,82,87,90,86,74,69,66,94,99,127,141,148,140,138,116,343,39,58,61,98,89,102,107,113,131,266,254,272,218,233,183,271,222,210,223,231,229,247,242,265,226,243,186,186,172,202,182,182,178,329,327,384,370,399,187,187,20,20,20,20,20,20,69,48,43,702,654,1191,996,4775,4734,4775,4775,29969,29970,29970,29969,29971,29972,29973,12507]} 1. e4 {[%emt 0:00:08]} e5 {[%emt 0:00:20]} 2. Nf3 {[%emt 0:00:06]} Nc6 {[%emt 0:00:21]} 3. Bb5 {[%emt 0:00:09][%cal Bf1b5,Bb5a4,Ba4b3][%mdl 32]} Bc5 {[%emt 0:01:02]} 4. O-O {[%emt 0:02:00]} Nge7 {[%emt 0:03:18]} 5. c3 {[%emt 0:04:34]} a6 {[%emt 0:04:17]} 6. Ba4 {[%emt 0:00:21]} b5 {[%emt 0:08:17]} 7. Bb3 {[%emt 0:08:09] Hoping for d4.} Ng6 {[%emt 0:03:45] C64: Ruy Lopez: Classical Defence (3...Bc5) except 4 0-0 Nf6.} (7... O-O $14) 8. d4 $16 {[%emt 0:03:17]} exd4 {[%emt 0:10:55]} 9. cxd4 {[%emt 0:00:29]} Be7 {[%emt 0:00:22] White is better.} 10. Nc3 {[%emt 0:02:39]} Na5 {[%emt 0:06:50]} 11. Bc2 {[%emt 0:01:41] [#] White is more active.} Bb7 $146 {[%emt 0:00:55]} ({Predecessor:} 11... O-O 12. Nd5 d6 13. b3 Bg4 14. h3 Bd7 15. Bd2 Nc6 16. Rc1 Rc8 17. Bd3 h6 {1-0 (50) Foudzi,S (2019)-Mezioud,A Bled 2002}) 12. Ne2 {[%emt 0:22:58]} O-O {[%emt 0:05:44]} 13. Ng3 {[%emt 0:02:13]} d5 {[%emt 0:05:20]} 14. e5 {[%emt 0:02:10]} c5 {[%emt 0:01:43]} 15. h4 {[%emt 0:09:48][%cal Bh2h4,Bh4h5][%mdl 32]} Re8 {[%emt 0:14:24]} 16. h5 {[%emt 0:01:27]} Nf8 {[%emt 0:00:33]} 17. Nf5 {[%emt 0:02:16] And now Qd2 would win.} Ne6 $2 {[%emt 0:02:28]} (17... Bc8 $16 {was necessary.}) 18. Nxe7+ $2 {[%emt 0:09:59]} (18. Qd3 $18 {[%cal Of5h6] White threatens Nh6+! and mate.} Nf8 19. h6) 18... Qxe7 $14 {[%emt 0:00:22]} 19. dxc5 {[%emt 0:02:13]} Qxc5 {[%emt 0:04:43]} 20. Qd3 {[%emt 0:00:12]} Nf8 {[%emt 0:00:38][%cal Od5d4]} 21. b4 $36 {[%emt 0:00:08][%mdl 2048] White is in control.} Qxb4 {[%emt 0:05:38]} 22. Bd2 {[%emt 0:00:08][%mdl 64] [#] Skewer} Qg4 {[%emt 0:00:11]} (22... Qc5 $16) 23. Bxa5 $18 {[%emt 0:01:26]} d4 {[%emt 0:03:09]} 24. Rfe1 {[%emt 0:04:27]} Rac8 {[%emt 0:02:42][%cal Oc8c2] Strongly threatening ...Rxc2!} 25. Rac1 {[%emt 0:01:26]} (25. Qxd4 Bxf3 26. Qxg4 Bxg4 $11) 25... Qxh5 {[%emt 0:03:20]} (25... Rc4 $142) 26. Qf5 {[%emt 0:07:50]} (26. Qxd4 Bxf3 27. Qd3 (27. gxf3 $2 Rxc2 28. Rxc2 Qg6+ 29. Qg4 Qxc2 $19) 27... Bb7 $15) 26... Qxf5 {[%emt 0:08:04]} 27. Bxf5 {[%emt 0:00:03][%mdl 64] Discovered Attack. This bishop pair is nice.} Rxc1 {[%emt 0:00:20]} 28. Rxc1 {[%emt 0:00:04]} g6 {[%emt 0:00:48]} 29. Bd3 {[%emt 0:02:06]} (29. Nxd4 gxf5 30. Nxf5 Bd5 $16) 29... Bxf3 {[%emt 0:01:12]} 30. gxf3 {[%emt 0:00:03]} Rxe5 {[%emt 0:00:16]} 31. Rc8 {[%emt 0:03:40]} Kg7 {[%emt 0:00:33]} 32. Ra8 {[%emt 0:00:11]} Nd7 {[%emt 0:00:53]} 33. Rd8 {[%emt 0:03:26]} ({And not} 33. Rxa6 Nc5 34. Rd6 (34. f4 $2 Rd5 $19) 34... Nxd3 35. Rxd4 Ne1 $17) 33... Nc5 {[%emt 0:02:17]} 34. Rxd4 {[%emt 0:00:05]} Ne6 $2 {[%emt 0:00:12]} (34... Nxd3 35. Rxd3 Re6 36. Bc3+ Kf8) 35. Rd6 {[%emt 0:00:28] Black must now prevent Bc3.} Rc5 {[%emt 0:00:41] Against Bc3+} 36. Rxa6 {[%emt 0:02:39]} Rc1+ {[%emt 0:00:08]} 37. Kh2 {[%emt 0:00:19]} (37. Bf1 $142) 37... Nc5 {[%emt 0:00:13] [#]} 38. Bxb5 {[%emt 0:02:15]} ({Not} 38. Rd6 Rd1 $11) ({White has to play} 38. Bd2 $1 $18 Nxd3 39. Rd6 (39. Bxc1 Nxc1 40. a3 Nb3 $18)) 38... Nxa6 $11 {[%emt 0:00:07]} 39. Bxa6 {[%emt 0:00:03]} Rc2 {[%emt 0:00:05][%csl LRa2,LRf2]} 40. a4 {[%emt 0:00:11][%cal Ba2a4,Ba4a5,Ba5a6,Ba6a7][%mdl 32]} Rxf2+ {[%emt 0:00:48]} 41. Kg3 {[%emt 0:30:05]} Ra2 {[%emt 0:30:56]} 42. Bb5 {[%emt 0:00:00] Bb6 is the strong threat.} g5 $2 {[%emt 0:00:00][%mdl 8192]} (42... f6 $14) 43. Bb6 $18 {[%emt 0:00:00] Threatens to win with a5.} h5 {[%emt 0:00:00]} 44. a5 {[%emt 0:00:00]} f5 {[%emt 0:00:00]} 45. a6 {[%emt 0:00:00]} h4+ {[%emt 0:00:00]} 46. Kh3 {[%emt 0:00:00] a7 would kill now.} Kh6 {[%emt 0:00:00]} 47. a7 {[%emt 0:00:00] White mates.} Kh5 {[%emt 0:00:00]} 48. Be8+ {[%emt 0:00:00]} Kh6 {[%emt 0:00:00]} 49. Bc5 {[%emt 0:00:00]} Kg7 {[%emt 0:00:00]} 50. Bc6 {[%emt 0:00:00] Weighted Error Value: White=0.35/Black=0.50} (50. f4 $142 gxf4 51. Bc6 Kh6 52. a8=Q Rxa8 53. Bxa8 Kh5 54. Be7 Kg6 55. Bxh4) 1-0